bitfinex/quotes_SOLUSD_20220311
["timestamp","ask_amount","ask_price","bid_price","bid_amount"]
[1646980512025,6.0,82.021,81.971,48.54527725]
[1646980512223,3.04447957,82.021,81.931,24.31903516]
[1646980512424,122.8,82.019,81.932,12.099]
[1646980512625,151.9288,82.018,81.932,6.0]
[1646980512825,154.97327957,82.018,81.933,17.21620623]
[1646980513025,154.97327957,82.018,81.934,6.0]
[1646980513229,3.84948925,82.017,81.935,54.23496579]
[1646980513427,6.099,82.016,81.935,54.23496579]
[1646980513627,122.8,82.015,81.936,17.21620623]
[1646980513830,3.04447957,82.015,81.936,17.21620623]
[1646980514033,3.04447957,82.015,81.937,135.149]
[1646980514231,0.80500968,82.017,81.937,38.03968073]
[1646980514529,0.80500968,82.017,81.938,42.90688696]
[1646980514730,0.80500968,82.017,81.939,6.0]
[1646980514934,9.14347957,82.016,81.939,17.21620623]
[1646980515327,9.14347957,82.016,81.94,17.21620623]
[1646980515529,6.0,82.015,81.94,17.21620623]
[1646980515728,6.099,82.014,81.936,17.21620623]
[1646980516130,6.099,82.014,81.94,18.2964]
[1646980516333,6.099,82.014,81.936,17.21620623]
[1646980516530,6.099,82.014,81.941,17.21620623]
[1646980516831,0.80500968,82.017,81.942,6.099]
[1646980517032,6.099,82.016,81.938,17.21620623]
[1646980517430,6.099,82.016,81.936,17.21620623]
[1646980517630,6.099,82.016,81.94,18.2964]
[1646980518330,6.099,82.016,81.941,17.21620623]
[1646980519935,6.099,82.016,81.97,18.2897]
[1646980520131,0.80500968,82.017,81.942,9.14247957]
[1646980520332,0.80500968,82.017,81.943,6.0]
[1646980520635,0.80500968,82.017,81.96,60.9542]
[1646980520832,0.80500968,82.017,81.961,62.26233905]
[1646980521031,0.80500968,82.017,81.97,18.2897]
[1646980523237,23.0298,82.018,81.97,18.2897]
[1646980523438,23.0298,82.018,81.98,18.2871]
[1646980523840,6.36613653,82.058,81.962,122.8]
[1646980524039,6.36613653,82.058,81.981,3.04447957]
[1646980524240,17.56407147,82.057,81.982,6.0]
[1646980524642,17.56407147,82.057,81.983,3.04447957]
[1646980524838,23.9071,82.069,81.984,6.0]
[1646980525240,6.095,82.068,81.984,9.04447957]
[1646980525442,23.9071,82.069,81.985,122.8]
[1646980525639,23.9071,82.069,81.987,122.8]
[1646980525838,39.41251588,82.069,81.988,66.42809637]
[1646980526040,39.41251588,82.069,81.988,83.57229538]
[1646980526241,39.41251588,82.069,82.0,18.2828]
[1646980526439,39.41251588,82.069,81.988,66.42809637]
[1646980526640,6.095,82.068,81.988,66.42809637]
[1646980527142,30.646,82.067,81.988,66.42809637]
[1646980527340,6.095,82.066,81.988,66.42809637]
[1646980527541,24.646,82.067,81.989,3.04447957]
[1646980527740,24.646,82.067,81.99,6.0]
[1646980527941,14.54,82.09,81.99,6.0]
[1646980528141,6.0,82.089,81.992,122.8]
[1646980528343,6.0,82.089,81.993,6.0]
[1646980528541,6.0,82.089,81.994,122.8]
[1646980528744,14.30107259,82.092,81.999,61.39]
[1646980528969,6.0,82.091,82.041,52.24130375]
[1646980530171,6.0,82.091,82.0,6.0]
[1646980530369,6.0,82.091,81.996,6.0]
[1646980530784,6.0,82.091,81.997,3.04447957]
[1646980530972,6.0,82.09,82.0,61.39]
[1646980531172,48.3055,82.093,82.003,122.8]
[1646980531371,6.0,82.092,82.004,6.0]
[1646980531774,14.18158374,82.091,82.02,18.2736]
[1646980531971,14.18158374,82.091,82.021,6.0]
[1646980532173,14.18158374,82.091,82.005,56.59518931]
[1646980532374,14.18158374,82.091,82.006,6.0]
[1646980532571,20.27458374,82.091,82.006,6.0]
[1646980532772,20.27458374,82.091,82.006,128.8]
[1646980532972,14.18158374,82.091,82.007,3.04447957]
[1646980533173,14.18158374,82.091,82.02,18.2738]
[1646980533379,48.3055,82.093,82.021,6.0]
[1646980533573,48.3055,82.093,82.021,9.04447957]
[1646980533772,48.3055,82.093,82.022,3.04447957]
[1646980533972,48.3055,82.093,82.023,128.8]
[1646980534172,48.3055,82.093,82.023,135.49]
[1646980534373,48.3055,82.093,82.024,3.04447957]
[1646980534576,48.3055,82.093,82.025,6.0]
[1646980534873,48.3055,82.093,82.026,3.04447957]
[1646980535076,48.3055,82.093,82.027,6.0]
[1646980535572,13.16479463,82.091,82.028,6.0]
[1646980535972,13.16479463,82.091,82.006,6.0]
[1646980536173,13.16479463,82.091,82.007,0.25]
[1646980536373,13.16479463,82.091,82.02,18.2757]
[1646980536573,13.16479463,82.091,82.021,6.0]
[1646980536974,6.0,82.09,82.021,6.0]
[1646980537174,13.16479463,82.091,82.021,6.0]
[1646980539875,13.16479463,82.091,82.03,18.2736]
[1646980540078,13.16479463,82.091,82.031,63.67482854]
[1646980540476,6.0,82.09,82.032,6.0]
[1646980540675,13.16479463,82.091,82.032,6.0]
[1646980541476,6.0,82.09,82.032,6.0]
[1646980541677,13.16479463,82.091,82.032,6.0]
[1646980541976,6.0,82.09,82.032,6.0]
[1646980542178,13.16479463,82.091,82.031,63.67482854]
[1646980542379,13.16479463,82.091,82.032,6.0]
[1646980542582,48.3055,82.093,82.032,6.0]
[1646980543578,15.46159767,82.092,82.032,6.0]
[1646980543977,6.0,82.091,82.032,6.0]
[1646980544179,15.46159767,82.092,82.032,6.0]
[1646980544378,6.0,82.091,82.032,6.0]
[1646980544579,6.0,82.09,82.032,6.0]
[1646980544780,15.46159767,82.092,82.032,6.0]
[1646980545481,15.46159767,82.092,82.031,63.67482854]
[1646980545780,15.46159767,82.092,82.0,18.2772]
[1646980546080,15.46159767,82.092,82.001,6.0]
[1646980546280,14.54,82.09,82.001,6.0]
[1646980546882,14.54,82.09,82.002,60.83560362]
[1646980547079,14.54,82.09,82.003,6.0]
[1646980547480,6.094,82.089,82.003,6.0]
[1646980547882,128.894,82.089,82.003,6.0]
[1646980548081,128.894,82.089,82.002,60.83560362]
[1646980549080,6.094,82.089,82.002,60.83560362]
[1646980550280,6.094,82.089,82.003,6.0]
[1646980550484,6.0,82.088,82.003,6.0]
[1646980550781,6.094,82.087,82.003,6.0]
[1646980551784,9.13847957,82.087,82.003,6.0]
[1646980551986,6.094,82.087,82.002,60.83560362]
[1646980552586,24.4717,82.087,82.002,60.83560362]
[1646980552886,24.4717,82.087,82.003,6.094]
[1646980553383,24.4717,82.087,82.002,60.83560362]
[1646980554987,6.0,82.086,82.002,60.83560362]
[1646980555187,6.094,82.085,82.002,60.83560362]
[1646980555388,14.54,82.08,82.002,60.83560362]
[1646980555590,128.894,82.079,82.002,60.83560362]
[1646980555791,151.6278,82.079,82.002,60.83560362]
[1646980557292,28.8278,82.079,82.003,122.8]
[1646980557492,22.7338,82.079,82.005,122.8]
[1646980557689,22.7338,82.079,82.007,122.8]
[1646980557889,22.7338,82.079,82.009,122.8]
[1646980558088,22.7338,82.079,82.01,6.0]
[1646980558289,22.7338,82.079,82.011,6.094]
[1646980558490,6.0,82.078,82.012,6.0]
[1646980558690,22.7338,82.079,82.013,6.094]
[1646980558891,22.7338,82.079,82.014,6.0]
[1646980559090,22.7338,82.079,82.03,18.2725]
[1646980559289,22.7338,82.079,82.031,55.67648099]
[1646980559689,6.0,82.078,82.031,55.67648099]
[1646980559889,22.7338,82.079,82.031,55.67648099]
[1646980560388,22.7338,82.079,82.032,12.093]
[1646980561096,22.7338,82.079,82.032,6.0]
[1646980561291,6.0,82.078,82.032,6.0]
[1646980561491,16.03289535,82.087,82.032,6.0]
[1646980561990,6.0,82.086,82.031,55.67648099]
[1646980562193,16.03289535,82.087,82.031,55.67648099]
[1646980562390,23.5427,82.092,82.032,6.0]
[1646980562991,6.0,82.091,82.032,6.0]
[1646980563591,6.0,82.091,82.04,18.2709]
[1646980563792,6.0,82.091,82.041,6.0]
[1646980564590,6.0,82.091,82.032,6.0]
[1646980565791,6.0,82.091,82.021,6.091]
[1646980565993,20.633,82.09,81.981,18.1728]
[1646980566395,20.633,82.09,81.971,23.7965]
[1646980566396,3.04447957,82.089,81.979,3.04447957]
[1646980566593,6.094,82.088,81.97,112.12163171]
[1646980566794,6.094,82.088,81.983,56.86096654]
[1646980566993,122.8,82.086,81.983,56.86096654]
[1646980567393,122.8,82.084,81.983,56.86096654]
[1646980567595,14.54,82.07,81.983,56.86096654]
[1646980567796,24.1872,82.069,81.99,18.2828]
[1646980568396,122.8,82.068,81.983,56.86096654]
[1646980568794,6.095,82.067,81.983,56.86096654]
[1646980568997,24.8796,82.066,81.983,56.86096654]
[1646980569996,6.0,82.065,81.983,56.86096654]
[1646980570231,14.54,82.06,81.983,56.86096654]
[1646980570397,24.4796,82.059,81.99,18.2836]
[1646980570595,24.4796,82.059,81.983,56.86096654]
[1646980571197,24.4796,82.059,81.969,23.15011196]
[1646980571400,24.4796,82.059,81.96,3.04447957]
[1646980571401,128.896,82.058,81.96,3.04447957]
[1646980571611,150.79619709,82.058,81.96,3.04447957]
[1646980571809,3.04447957,82.057,81.949,12.73675065]
[1646980572007,128.897,82.056,81.936,3.04447957]
[1646980572210,147.75271752,82.056,81.95,63.40003078]
[1646980572408,122.8,82.054,81.95,63.40003078]
[1646980572607,122.8,82.039,81.95,63.40003078]
[1646980572810,14.54,82.03,81.951,17.1401446]
[1646980573207,14.54,82.03,81.952,6.0]
[1646980573408,6.0,82.029,81.952,6.0]
[1646980573606,6.0,82.029,81.953,38.12990634]
[1646980573807,6.0,82.029,81.96,60.9493]
[1646980574011,6.0,82.029,81.961,6.0]
[1646980574214,24.4911,82.028,81.961,6.0]
[1646980574412,24.4911,82.028,81.962,17.13649687]
[1646980574611,24.4911,82.028,81.963,6.0]
[1646980575012,24.4911,82.028,81.97,18.2881]
[1646980575212,24.4911,82.028,81.971,6.0]
[1646980575414,24.4911,82.028,81.962,6.0]
[1646980576015,24.4911,82.028,81.981,57.84146622]
[1646980578030,24.4911,82.028,81.982,9.04447957]
[1646980578228,22.5601,82.038,81.982,9.04447957]
[1646980578429,22.5601,82.038,81.983,3.04447957]
[1646980578628,22.5601,82.038,81.984,6.0]
[1646980579028,6.0,82.037,82.0,18.2812]
[1646980579230,23.5875,82.067,82.0,18.2812]
[1646980579433,6.0,82.066,82.0,18.2812]
[1646980579630,6.0,82.066,81.985,3.04447957]
[1646980579830,6.0,82.066,82.0,3.04447957]
[1646980580030,6.0,82.066,82.001,6.0]
[1646980580632,47.2817,82.067,82.02,18.2767]
[1646980580831,47.2817,82.067,82.021,59.07805895]
[1646980583035,47.2817,82.067,82.001,6.0]
[1646980583635,47.2817,82.067,82.002,17.17395337]
[1646980583934,47.2817,82.067,82.003,53.59594]
[1646980584538,6.0,82.066,82.01,18.2786]
[1646980584736,47.2817,82.067,82.011,6.0]
[1646980585834,47.2817,82.067,82.003,47.59594]
[1646980586037,6.0,82.066,82.003,47.59594]
[1646980586634,6.0,82.066,81.952,23.687]
[1646980586835,6.0,82.066,81.98,18.2856]
[1646980587237,12.095,82.066,81.981,17.18827758]
[1646980587635,12.095,82.066,81.982,62.48842138]
[1646980587834,12.095,82.066,81.99,18.2832]
[1646980588034,6.0,82.066,81.99,18.2832]
[1646980588436,6.0,82.066,81.991,17.18827758]
[1646980588734,47.2817,82.067,81.991,17.18827758]
[1646980588936,46.7817,82.067,81.991,17.18827758]
[1646980589136,46.7817,82.067,81.992,6.0]
[1646980589733,46.7817,82.067,81.991,6.0]
[1646980591137,46.7817,82.067,81.992,17.18521685]
[1646980591337,46.7817,82.067,81.993,6.0]
[1646980591938,46.7817,82.067,81.991,6.0]
[1646980592541,6.0,82.066,81.991,6.0]
[1646980595144,46.7817,82.067,82.021,59.24641002]
[1646980595342,4.67966345,82.089,82.021,59.24641002]
[1646980595544,6.093,82.099,82.022,6.0]
[1646980595744,6.093,82.104,82.022,6.0]
[1646980595943,6.093,82.104,82.022,128.8]
[1646980596242,6.0,82.103,82.024,122.8]
[1646980596442,6.0,82.103,82.025,6.0]
[1646980596646,6.091,82.102,82.025,6.0]
[1646980597043,6.091,82.102,82.024,6.0]
[1646980597748,6.091,82.102,82.025,17.17236672]
[1646980597946,6.091,82.102,82.026,6.0]
[1646980598145,6.091,82.102,82.03,18.2748]
[1646980598345,6.091,82.102,82.031,6.0]
[1646980598946,6.091,82.102,82.023,6.0]
[1646980599146,6.0,82.103,82.023,6.0]
[1646980599348,6.0,82.103,82.024,17.16916856]
[1646980599547,6.0,82.103,82.025,6.0]
[1646980600254,6.0,82.103,82.04,18.2727]
[1646980600447,6.0,82.103,82.025,6.0]
[1646980600650,6.0,82.103,82.023,6.0]
[1646980601054,6.0,82.103,82.025,122.8]
[1646980601248,6.0,82.103,82.04,18.2725]
[1646980602050,47.0269,82.105,82.04,18.2725]
[1646980603050,6.0,82.104,82.041,6.0]
[1646980604349,6.0,82.104,82.023,6.0]
[1646980604750,6.0,82.104,82.024,17.16313773]
[1646980604951,6.0,82.104,82.025,6.0]
[1646980605151,47.0269,82.105,82.025,128.8]
[1646980605554,47.0269,82.105,82.027,122.8]
[1646980605753,47.0269,82.105,82.028,6.0]
[1646980605951,47.0269,82.105,82.028,26.2076173]
[1646980606153,47.0269,82.105,82.029,3.04447957]
[1646980606352,47.0269,82.105,82.05,18.2705]
[1646980606557,47.0269,82.105,82.051,6.0]
[1646980607055,47.0269,82.105,82.041,6.0]
[1646980607253,6.0,82.104,82.041,6.0]
[1646980607452,47.0269,82.105,82.061,53.0710573]
[1646980607652,47.0269,82.105,82.062,6.0]
[1646980607854,6.0,82.104,82.062,6.0]
[1646980608052,47.0269,82.105,82.062,6.0]
[1646980608253,6.0,82.104,82.062,6.0]
[1646980608454,6.0,82.103,82.07,18.2658]
[1646980608657,6.091,82.136,82.062,6.0]
[1646980608855,6.0,82.118,82.062,6.0]
[1646980609057,45.5202,82.139,82.062,128.8]
[1646980609457,45.5202,82.139,82.062,190.19]
[1646980609854,45.5202,82.139,82.062,67.39]
[1646980610262,45.5202,82.139,82.08,18.2636]
[1646980610458,45.5202,82.139,82.081,6.0]
[1646980611480,6.0,82.138,82.063,6.0]
[1646980611680,71.73129417,82.139,82.063,6.0]
[1646980611880,71.73129417,82.139,82.062,6.0]
[1646980612282,6.0,82.138,82.062,6.0]
[1646980612480,9.04447957,82.138,82.062,6.0]
[1646980612681,26.21109417,82.137,82.062,6.0]
[1646980612882,29.25557374,82.137,82.062,6.0]
[1646980613084,18.2698,82.13,82.062,6.0]
[1646980613483,23.1172,82.129,82.062,6.0]
[1646980614688,23.1172,82.129,82.032,61.39]
[1646980614884,125.84447957,82.128,82.033,6.0]
[1646980615184,6.091,82.127,82.033,9.04447957]
[1646980615385,35.34657374,82.127,82.033,9.04447957]
[1646980615588,29.25557374,82.126,82.034,64.12244662]
[1646980615785,29.25557374,82.126,82.035,6.0]
[1646980615786,6.091,82.125,82.035,6.0]
[1646980615986,14.54,82.12,82.035,6.0]
[1646980616186,23.1172,82.119,82.035,6.0]
[1646980616589,6.0,82.118,82.035,6.0]
[1646980616787,9.04447957,82.118,82.04,18.2718]
[1646980616990,6.091,82.117,82.041,6.0]
[1646980617191,2.21771349,82.116,82.041,6.0]
[1646980619891,6.091,82.115,82.041,6.0]
[1646980620092,6.0,82.114,82.04,18.2718]
[1646980620492,24.0795,82.113,82.041,6.0]
[1646980620893,24.0795,82.113,82.04,18.2718]
[1646980621493,24.0795,82.113,82.041,6.0]
[1646980622694,6.091,82.112,82.04,18.2718]
[1646980625598,24.0795,82.113,82.041,6.0]
[1646980625998,24.0795,82.113,82.04,18.2718]
[1646980626901,24.0795,82.113,82.041,6.0]
[1646980627100,6.0,82.112,82.041,6.0]
[1646980627500,6.0,82.112,82.04,18.2718]
[1646980629905,128.8,82.112,82.034,64.12244662]
[1646980630105,32.8158,82.11,82.035,6.0]
[1646980630306,32.8158,82.11,82.034,64.12244662]
[1646980630505,32.8158,82.11,82.035,6.0]
[1646980630709,6.091,82.109,82.035,6.0]
[1646980630908,122.8,82.108,82.035,6.0]
[1646980631105,6.091,82.107,82.034,64.12244662]
[1646980632206,3.04447957,82.106,82.034,64.12244662]
[1646980634007,6.0,82.105,82.034,64.12244662]
[1646980634308,9.04447957,82.105,82.034,64.12244662]
[1646980635409,15.13547957,82.105,82.034,64.12244662]
[1646980636112,122.8,82.104,82.014,3.04447957]
[1646980636310,122.8,82.104,81.999,41.4231]
[1646980636311,122.8,82.099,82.005,23.68007614]
[1646980636711,122.8,82.097,82.006,17.17942423]
[1646980636909,6.093,82.096,82.007,6.0]
[1646980637111,122.8,82.094,82.008,62.60589785]
[1646980637310,122.8,82.089,82.009,6.0]
[1646980637514,145.1787392,82.088,82.009,6.0]
[1646980637735,30.9007,82.087,82.009,6.0]
[1646980637935,30.9007,82.087,82.008,62.60589785]
[1646980638136,30.9007,82.087,82.01,6.0]
[1646980638336,30.9007,82.087,82.009,6.0]
[1646980638637,3.04447957,82.086,82.008,62.60589785]
[1646980638836,29.9,82.085,82.005,23.68007614]
[1646980639037,14.54,82.08,82.005,23.68007614]
[1646980639242,6.094,82.079,82.006,17.18720234]
[1646980639636,128.894,82.079,82.006,17.18720234]
[1646980639837,6.094,82.079,82.007,47.36333418]
[1646980640037,128.894,82.079,82.008,6.0]
[1646980641038,131.93847957,82.079,81.99,23.68007614]
[1646980641437,131.93847957,82.079,81.996,6.0]
[1646980641637,150.47137957,82.079,81.996,17.18883184]
[1646980642039,150.47137957,82.079,81.997,63.68952066]
[1646980642237,150.47137957,82.079,81.998,6.0]
[1646980642438,150.47137957,82.079,81.998,23.18883184]
[1646980642639,150.47137957,82.079,81.998,17.18883184]
[1646980642840,150.47137957,82.079,81.999,17.18883184]
[1646980643038,6.0,82.078,81.999,17.18883184]
[1646980643243,6.094,82.077,81.998,17.18883184]
[1646980644039,6.094,82.077,81.997,63.68952066]
[1646980644242,6.094,82.077,82.0,18.2812]
[1646980644438,6.0,82.078,82.0,18.2812]
[1646980644439,6.0,82.078,82.001,23.1777116]
[1646980645041,6.0,82.078,82.002,17.1777116]
[1646980645643,6.0,82.078,82.003,6.0]
[1646980646041,6.0,82.078,82.002,17.1777116]
[1646980646242,6.0,82.078,82.004,17.1777116]
[1646980646642,128.8,82.078,81.998,17.1777116]
[1646980646842,128.8,82.078,81.999,6.0]
[1646980647042,6.0,82.078,81.999,6.0]
[1646980647445,128.8,82.078,82.0,17.1777116]
[1646980647642,128.8,82.078,82.001,6.0]
[1646980648042,128.8,82.078,82.0,17.1777116]
[1646980648243,6.094,82.077,82.001,6.0]
[1646980648445,6.094,82.077,81.998,17.1777116]
[1646980649048,6.094,82.077,81.999,6.0]
[1646980649648,6.094,82.077,82.0,17.1777116]
[1646980650045,6.094,82.077,82.001,6.0]
[1646980650245,6.094,82.077,82.0,17.1777116]
[1646980650446,6.094,82.077,81.997,63.68952066]
[1646980650447,6.094,82.077,82.002,17.1777116]
[1646980650645,6.094,82.079,82.002,17.1777116]
[1646980650846,6.094,82.079,81.998,17.1777116]
[1646980651045,6.0,82.078,81.999,6.0]
[1646980651245,6.094,82.077,82.0,17.1777116]
[1646980651448,6.094,82.077,82.001,6.0]
[1646980651651,6.094,82.077,82.0,17.1777116]
[1646980651846,6.094,82.077,82.002,17.1777116]
[1646980652246,6.094,82.078,81.998,17.1777116]
[1646980653048,23.806,82.085,82.0,122.8]
[1646980653247,23.806,82.085,82.002,122.8]
[1646980653450,23.806,82.085,82.004,122.8]
[1646980653748,23.806,82.085,82.006,122.8]
[1646980653950,23.806,82.085,82.03,60.8976]
[1646980654152,23.806,82.085,82.032,59.63073577]
[1646980654350,23.806,82.085,82.033,6.0]
[1646980654550,23.806,82.085,82.033,26.22219117]
[1646980654751,23.806,82.085,82.033,23.1777116]
[1646980654951,23.806,82.085,82.034,20.22219117]
[1646980655152,23.806,82.085,82.035,12.093]
[1646980655354,6.093,82.131,82.036,122.8]
[1646980655554,46.9635,82.13,82.038,122.8]
[1646980655753,46.9635,82.13,82.04,122.8]
[1646980655952,46.9635,82.13,82.042,184.19]
[1646980656153,46.9635,82.13,82.06,18.2661]
[1646980656353,46.9635,82.13,82.061,63.20761903]
[1646980656953,61.5035,82.13,82.061,57.20761903]
[1646980657153,87.71459417,82.13,82.061,57.20761903]
[1646980657955,6.0,82.129,82.061,57.20761903]
[1646980658756,6.09,82.128,82.061,57.20761903]
[1646980659364,6.09,82.129,82.061,57.20761903]
[1646980659560,128.89,82.129,82.061,57.20761903]
[1646980659761,6.09,82.129,82.061,57.20761903]
[1646980659961,128.89,82.129,82.061,57.20761903]
[1646980661463,6.0,82.128,82.061,57.20761903]
[1646980661665,79.773,82.13,82.061,57.20761903]
[1646980661867,6.0,82.129,82.061,57.20761903]
[1646980665988,128.8,82.129,82.061,57.20761903]
[1646980667889,122.8,82.127,82.061,57.20761903]
[1646980668088,6.09,82.126,82.061,57.20761903]
[1646980668289,6.09,82.126,82.043,23.7886]
[1646980668489,3.04447957,82.125,82.044,6.0]
[1646980668688,122.8,82.119,82.043,23.7886]
[1646980669096,122.8,82.117,82.032,3.04447957]
[1646980669289,6.091,82.116,82.024,52.89741707]
[1646980669488,122.8,82.115,82.025,12.091]
[1646980669694,122.8,82.099,82.025,23.27092006]
[1646980669889,4.4856321,82.097,82.025,23.27092006]
[1646980670093,4.4856321,82.097,82.026,17.17992006]
[1646980670289,3.04447957,82.096,82.026,17.17992006]
[1646980670492,3.04447957,82.096,82.025,17.17992006]
[1646980670691,4.4856321,82.097,82.025,17.17992006]
[1646980670891,4.4856321,82.097,82.024,52.89741707]
[1646980671091,6.093,82.096,82.024,52.89741707]
[1646980671493,6.0,82.095,82.024,52.89741707]
[1646980671691,14.54,82.09,82.024,52.89741707]
[1646980672397,122.8,82.089,82.011,22.5121]
[1646980672791,14.54,82.09,82.012,6.093]
[1646980672991,14.54,82.09,82.012,23.28164756]
[1646980673393,14.54,82.09,82.013,68.56517675]
[1646980673594,14.54,82.09,82.014,6.093]
[1646980673894,14.54,82.09,82.014,23.28164756]
[1646980674093,122.8,82.089,82.014,17.18864756]
[1646980674495,24.8662,82.088,82.014,17.18864756]
[1646980675297,6.0,82.087,82.014,17.18864756]
[1646980675897,6.093,82.086,82.014,17.18864756]
[1646980678697,12.093,82.087,82.014,17.18864756]
[1646980679701,6.093,82.087,82.014,17.18864756]
[1646980680105,24.8662,82.088,82.015,6.093]
[1646980680705,24.8662,82.088,82.016,17.18864756]
[1646980681003,24.8662,82.088,82.017,6.093]
[1646980681605,24.8662,82.088,82.014,6.093]
[1646980683004,6.0,82.087,82.014,6.093]
[1646980683706,6.0,82.087,82.02,18.2777]
[1646980684308,6.0,82.087,82.014,6.093]
[1646980684506,6.0,82.087,82.021,23.66937849]
[1646980684707,24.8662,82.088,82.022,12.093]
[1646980684908,24.8662,82.088,82.04,18.2725]
[1646980685108,24.8662,82.088,82.041,54.53094583]
[1646980688315,24.8662,82.088,82.031,6.091]
[1646980688513,6.0,82.087,82.031,6.091]
[1646980688713,24.8662,82.088,82.031,6.091]
[1646980689316,24.8662,82.088,82.032,59.9439814]
[1646980689616,24.8662,82.088,82.033,6.093]
[1646980689816,24.8662,82.088,82.032,59.9439814]
[1646980693422,24.8662,82.088,82.02,18.2776]
[1646980693619,24.8662,82.088,82.012,6.093]
[1646980694119,24.8662,82.088,82.013,17.18732525]
[1646980694319,6.0,82.087,82.014,6.0]
[1646980694519,6.0,82.087,82.014,70.71364596]
[1646980694718,6.0,82.087,82.015,17.18732525]
[1646980695119,6.0,82.087,82.016,6.0]
[1646980695517,6.0,82.087,82.017,17.18732525]
[1646980695718,6.0,82.087,82.018,6.0]
[1646980695919,6.0,82.087,82.017,17.18732525]
[1646980696319,6.0,82.087,82.015,17.18732525]
[1646980696722,6.0,82.087,82.02,18.2772]
[1646980697519,6.0,82.087,82.021,17.18221412]
[1646980698520,6.0,82.087,82.022,6.0]
[1646980699224,6.0,82.087,82.023,17.18221412]
[1646980699424,6.0,82.087,82.024,6.0]
[1646980700023,6.0,82.087,82.025,17.18221412]
[1646980701625,6.0,82.087,82.021,17.18221412]
[1646980703027,6.0,82.087,82.022,6.0]
[1646980703628,6.0,82.087,82.023,17.18221412]
[1646980703831,6.0,82.087,82.024,6.0]
[1646980704031,6.0,82.087,82.024,128.8]
[1646980704229,14.54,82.11,82.04,18.2728]
[1646980704430,23.9386,82.109,82.026,122.8]
[1646980704629,23.9386,82.109,82.028,122.8]
[1646980704835,23.9386,82.109,82.029,6.0]
[1646980705254,15.42952444,82.108,82.03,139.98221412]
[1646980705454,15.42952444,82.108,82.04,60.8899]
[1646980705654,15.42952444,82.108,82.041,6.0]
[1646980705854,15.42952444,82.108,82.042,54.6426259]
[1646980706057,15.42952444,82.108,82.043,6.0]
[1646980706458,23.9386,82.109,82.06,18.2681]
[1646980706656,6.091,82.118,82.06,18.2681]
[1646980706857,28.9007,82.129,82.061,6.0]
[1646980707059,6.0,82.128,82.061,6.0]
[1646980707258,6.0,82.128,82.046,6.0]
[1646980707656,44.12940713,82.127,82.047,17.16556903]
[1646980708059,44.12940713,82.127,82.046,17.16556903]
[1646980708258,6.091,82.126,82.046,17.16556903]
[1646980709259,6.091,82.126,82.05,18.2701]
[1646980711260,6.091,82.126,82.051,6.091]
[1646980711565,6.0,82.125,82.051,23.25978848]
[1646980711759,18.10031296,82.127,82.051,23.25978848]
[1646980711962,6.0,82.126,82.052,6.0]
[1646980712161,6.0,82.126,82.053,6.09]
[1646980712763,6.0,82.126,82.06,18.2686]
[1646980713167,12.09,82.126,82.06,18.2686]
[1646980714474,6.0,82.126,82.06,18.2686]
[1646980715476,6.0,82.126,82.07,18.2664]